bitfinex/quotes_BTCUSD_20250812
["timestamp","ask_amount","ask_price","bid_price","bid_amount"]
[1754980218577,0.43153705,119080.0,119070.0,0.1]
[1754980218791,1.2446932,119080.0,119070.0,0.1]
[1754980221504,0.17795154,119060.0,119050.0,0.00303]
[1754980221705,0.39786526,119060.0,119050.0,0.00511]
[1754980222386,0.42309226,119060.0,119050.0,0.00511]
[1754980222965,0.42409226,119060.0,119050.0,0.00511]
[1754980223369,0.42509226,119060.0,119050.0,0.00511]
[1754980223784,0.42509038,119060.0,119050.0,0.00511]
[1754980225196,0.4336272,119060.0,119050.0,0.00511]
[1754980225395,1.24678335,119060.0,119050.0,0.00511]
[1754980225603,0.18545977,119040.0,119030.0,0.0676104]
[1754980225849,0.185488,119020.0,119010.0,0.90407655]
[1754980226140,0.185488,119020.0,119010.0,1.2699629]
[1754980226784,0.185488,119020.0,119010.0,1.27851993]
[1754980226984,0.18553689,119020.0,119010.0,1.27851993]
[1754980227197,0.18553689,119020.0,119010.0,1.2699629]
[1754980227447,0.18553689,119020.0,119010.0,0.45680675]
[1754980227645,0.18553689,119020.0,119010.0,1.0109894]
[1754980228048,0.18553689,119020.0,119010.0,0.92826615]
[1754980229080,0.18553689,119020.0,119010.0,0.92926615]
[1754980229296,0.18553689,119020.0,119010.0,0.93026615]
[1754980231437,0.18553689,119020.0,119010.0,0.11711]
[1754980231647,0.18553689,119020.0,119010.0,0.93026615]
[1754980233236,0.18553689,119020.0,119010.0,0.11711]
[1754980233450,0.19397825,119020.0,119010.0,0.11711]
[1754980234195,0.19397825,119020.0,119010.0,0.82026615]
[1754980234609,0.18553689,119020.0,119010.0,0.82026615]
[1754980235020,0.21076889,119020.0,119010.0,0.82026615]
[1754980235627,0.21921897,119020.0,119010.0,0.82026615]
[1754980235824,0.19398697,119020.0,119010.0,0.82026615]
[1754980237995,0.18553689,119020.0,119010.0,0.82026615]
[1754980240373,0.18553689,119020.0,119010.0,0.00711]
[1754980240584,0.18553689,119020.0,119010.0,0.82026615]
[1754980242058,0.18553689,119020.0,119010.0,0.00711]
[1754980242290,0.18553689,119020.0,119010.0,0.82026615]
[1754980247265,0.18553689,119020.0,119010.0,0.00711]
[1754980247475,0.99869304,119020.0,119010.0,0.002]
[1754980247700,1.03178302,119020.0,119010.0,0.002]
[1754980247927,0.21862687,119020.0,119010.0,0.002]
[1754980248363,0.21862687,119020.0,119010.0,0.00424]
[1754980249530,0.21862687,119020.0,119010.0,0.00324]
[1754980250227,0.18550212,119010.0,119000.0,0.61040475]
[1754980250443,0.31546212,119010.0,119000.0,0.61563475]
[1754980250887,0.31546212,119010.0,119000.0,0.00523]
[1754980251797,0.32332041,119010.0,119000.0,0.00523]
[1754980252880,0.32332041,119010.0,119000.0,0.81911538]
[1754980253282,0.32432041,119010.0,119000.0,0.81911538]
[1754980254135,0.31646212,119010.0,119000.0,0.81911538]
[1754980254351,0.32432315,119010.0,119000.0,0.81911538]
[1754980254545,0.34955815,119010.0,119000.0,0.81911538]
[1754980256081,0.34955815,119010.0,119000.0,0.00523]
[1754980256298,0.18551624,119000.0,118990.0,0.81388538]
[1754980256494,0.19337727,119000.0,118990.0,0.00523]
[1754980256764,0.19337727,119000.0,118990.0,0.81911538]
[1754980257282,0.19338163,119000.0,118990.0,0.81911538]
[1754980257974,0.19338163,119000.0,118990.0,0.82011538]
[1754980258550,0.21861863,119000.0,118990.0,0.82111538]
[1754980260356,0.21861715,119000.0,118990.0,0.82111538]
[1754980260603,0.21861715,119000.0,118990.0,0.00723]
[1754980260805,0.21861778,119000.0,118990.0,0.82111538]
[1754980261013,0.21861778,119000.0,118990.0,0.00723]
[1754980261221,0.19338078,119000.0,118990.0,0.82111538]
[1754980264697,0.19338078,119000.0,118990.0,0.00723]
[1754980265080,0.21861878,119000.0,118990.0,0.82111538]
[1754980265293,0.19338078,119000.0,118990.0,0.82111538]
[1754980267407,0.32302078,119000.0,118990.0,0.82111538]
[1754980268460,0.32302078,119000.0,118990.0,0.00723]
[1754980268659,0.32302078,119000.0,118990.0,0.82111538]
[1754980270740,0.32302078,119000.0,118990.0,0.00723]
[1754980270913,0.32302078,119000.0,118990.0,0.82111538]
[1754980271366,0.32302058,119000.0,118990.0,0.82111538]
[1754980272031,0.32302119,119000.0,118990.0,0.82111538]
[1754980275940,0.32302119,119000.0,118990.0,0.00723]
[1754980276148,0.32302119,119000.0,118990.0,0.82111538]
[1754980280248,0.31515624,119000.0,118990.0,0.82111538]
[1754980280665,0.31515624,119000.0,118990.0,0.85111538]
[1754980282432,0.31515624,119000.0,118990.0,0.03723]
[1754980282637,0.31515624,119000.0,118990.0,0.85111538]
[1754980283282,0.31515624,119000.0,118990.0,0.03723]
[1754980283484,0.31515624,119000.0,118990.0,0.85111538]
[1754980286830,0.31515624,119000.0,118990.0,0.64767081]
[1754980287609,0.31515624,119000.0,118990.0,0.03723]
[1754980287757,0.31515624,119000.0,118990.0,0.64767081]
[1754980289891,0.31515624,119000.0,118990.0,1.25811162]
[1754980290104,0.31515624,119000.0,118990.0,1.42619297]
[1754980290370,0.31515624,119000.0,118990.0,1.55623297]
[1754980292803,0.31515624,119000.0,118990.0,1.14907917]
[1754980296358,0.025238,119010.0,119000.0,0.16806722]
[1754980296571,0.025238,119010.0,119000.0,1.99343611]
[1754980296572,0.13,119010.0,119000.0,1.99343611]
[1754980297399,0.14744902,119010.0,119000.0,1.99343611]
[1754980297580,0.14844902,119010.0,119000.0,1.99343611]
[1754980299176,0.14844902,119010.0,119000.0,0.36598047]
[1754980299377,0.14844902,119010.0,119000.0,1.99343611]
[1754980302417,0.14836902,119010.0,119000.0,1.99343611]
[1754980303066,0.31642212,119010.0,119000.0,0.92891782]
[1754980303305,0.31642212,119010.0,119000.0,1.09698504]
[1754980303741,0.31642212,119010.0,119000.0,0.28325722]
[1754980303950,0.31642212,119010.0,119000.0,1.09698504]
[1754980307161,0.31642212,119010.0,119000.0,0.92891782]
[1754980313395,0.31642212,119010.0,119000.0,1.09698504]
[1754980314524,0.31642212,119010.0,119000.0,1.91071286]
[1754980314745,0.14836902,119010.0,119000.0,1.63339208]
[1754980315226,0.14836902,119010.0,119000.0,2.24357951]
[1754980316827,0.01844902,119010.0,119000.0,2.12283909]
[1754980319346,0.01844902,119010.0,119000.0,0.49574047]
[1754980319566,0.01844902,119010.0,119000.0,2.12283909]
[1754980322720,0.01744902,119010.0,119000.0,2.12283909]
[1754980322921,0.01744902,119010.0,119000.0,2.12383909]
[1754980323358,0.01744902,119010.0,119000.0,2.12283909]
[1754980324479,4.889e-05,119020.0,119010.0,0.1680531]
[1754980324691,0.01749791,119020.0,119010.0,1.30597566]
[1754980325021,0.01749791,119020.0,119010.0,1.30914566]
[1754980326739,0.01749791,119020.0,119010.0,1.17954566]
[1754980328934,0.01749791,119020.0,119010.0,1.31748749]
[1754980331239,0.01749791,119020.0,119010.0,1.31848749]
[1754980331471,0.01749791,119020.0,119010.0,1.31948749]
[1754980333830,0.01749791,119020.0,119010.0,0.50593818]
[1754980334064,0.01749791,119020.0,119010.0,1.31948749]
[1754980338650,0.01749791,119020.0,119010.0,1.7260252]
[1754980354247,0.18553689,119020.0,119010.0,1.7260252]
[1754980357264,0.18553689,119020.0,119010.0,1.7208052]
[1754980357833,0.18553689,119020.0,119010.0,1.7258252]
[1754980361457,0.01749791,119020.0,119010.0,1.7258252]
[1754980362825,0.01749791,119020.0,119010.0,0.50573818]
[1754980363041,0.01749791,119020.0,119010.0,1.7258252]
[1754980363380,0.18553689,119020.0,119010.0,1.7258252]
[1754980363706,0.18553689,119020.0,119010.0,1.7257052]
[1754980365086,0.01749791,119020.0,119010.0,1.7257052]
[1754980374192,0.01749791,119020.0,119010.0,2.33574871]
[1754980374413,4.889e-05,119020.0,119010.0,2.33574871]
[1754980374803,4.889e-05,119020.0,119010.0,2.22574871]
[1754980375007,4.889e-05,119020.0,119010.0,2.30574871]
[1754980375141,4.889e-05,119020.0,119010.0,2.33097571]
[1754980381465,4.889e-05,119020.0,119010.0,2.20157571]
[1754980381677,4.889e-05,119020.0,119010.0,1.7208922]
[1754980388034,4.889e-05,119020.0,119010.0,2.33093571]
[1754980392844,4.889e-05,119020.0,119010.0,1.7208922]
[1754980393472,4.889e-05,119020.0,119010.0,2.33093571]
[1754980400316,4.889e-05,119020.0,119010.0,1.7208922]
[1754980402079,4.889e-05,119020.0,119010.0,2.33093571]
[1754980417925,0.17641221,119040.0,119020.0,0.16803898]
[1754980418125,0.16802486,119030.0,119020.0,0.97080574]
[1754980418331,0.16802486,119030.0,119020.0,1.10311574]
[1754980418538,0.17646115,119040.0,119020.0,1.10311574]
[1754980418743,0.17646115,119040.0,119030.0,0.12924]
[1754980418941,0.17646115,119040.0,119030.0,0.23924]
[1754980419365,0.17646115,119040.0,119030.0,1.45932702]
[1754980419974,0.19391017,119040.0,119030.0,1.45932702]
[1754980421585,0.19391017,119040.0,119030.0,1.33008702]
[1754980421805,0.19391017,119040.0,119030.0,0.11]
[1754980422029,0.20179033,119040.0,119030.0,0.11]
[1754980422457,0.35456033,119040.0,119030.0,0.11]
[1754980422894,0.37979033,119040.0,119030.0,0.11]
[1754980423100,0.37978508,119040.0,119030.0,0.11]
[1754980425294,1.07255184,119040.0,119030.0,0.11]
[1754980425586,0.46250833,119040.0,119030.0,0.11]
[1754980425951,1.07255184,119040.0,119030.0,0.11]
[1754980426743,0.18547388,119030.0,119020.0,0.61004351]
[1754980426980,0.18547388,119030.0,119020.0,0.72004351]
[1754980427188,0.18547388,119030.0,119020.0,0.11]
[1754980427544,0.21070588,119030.0,119020.0,0.11]
[1754980427748,0.21070588,119030.0,119020.0,0.72004351]
[1754980427946,0.21856972,119030.0,119020.0,0.72004351]
[1754980428355,0.21070588,119030.0,119020.0,0.72004351]
[1754980428561,0.21070588,119030.0,119020.0,0.11]
[1754980428764,0.21070588,119030.0,119020.0,0.72004351]
[1754980431875,0.21070588,119030.0,119020.0,0.11]
[1754980432128,0.21070588,119030.0,119010.0,0.61004351]
[1754980432129,0.185488,119020.0,119010.0,0.61004351]
[1754980432309,0.314688,119020.0,119010.0,0.73004351]
[1754980432897,0.34836598,119020.0,119010.0,0.73004351]
[1754980434380,0.34836598,119020.0,119010.0,0.73104351]
[1754980435397,0.34836598,119020.0,119010.0,0.73204351]
[1754980435817,0.34836598,119020.0,119010.0,0.122]
[1754980436038,0.34836598,119020.0,119010.0,0.73204351]
[1754980436449,0.34836598,119020.0,119010.0,0.122]
[1754980436586,0.34836598,119020.0,119010.0,0.73204351]
[1754980438716,0.34836598,119020.0,119010.0,0.122]
[1754980438915,0.34836598,119020.0,119010.0,0.73204351]
[1754980439065,0.34836598,119020.0,119010.0,0.73511351]
[1754980440979,0.34836598,119020.0,119010.0,0.12507]
[1754980441461,0.43108923,119020.0,119010.0,0.73204351]
[1754980442506,0.43108923,119020.0,119010.0,0.122]
[1754980442706,1.04113274,119020.0,119010.0,0.122]
[1754980443041,0.43108923,119020.0,119010.0,0.73511351]
[1754980444893,0.43108923,119020.0,119010.0,0.73204351]
[1754980445095,0.43108923,119020.0,119010.0,0.122]
[1754980445640,1.04113274,119020.0,119010.0,0.122]
[1754980445841,0.18553037,118990.0,118970.0,0.0928454]
[1754980446075,0.18554449,118980.0,118970.0,0.1876104]
[1754980446239,0.18554449,118980.0,118970.0,0.2513]
[1754980446440,0.18554449,118980.0,118970.0,0.86441351]
[1754980447072,0.18554449,118980.0,118970.0,0.86856041]
[1754980447532,0.18554449,118980.0,118970.0,0.86656041]
[1754980448144,0.18554449,118980.0,118970.0,1.47760392]
[1754980448755,0.18554449,118980.0,118970.0,1.07162336]
[1754980449637,0.18554449,118980.0,118970.0,0.2575169]
[1754980449928,0.18554449,118980.0,118970.0,0.94246336]
[1754980452484,0.19339737,118980.0,118970.0,0.94246336]
[1754980452687,0.19339737,118980.0,118970.0,0.1283569]
[1754980452866,0.19339737,118980.0,118970.0,0.94246336]
[1754980453654,0.19339737,118980.0,118970.0,0.1283569]
[1754980453860,0.19339737,118980.0,118970.0,0.94246336]
[1754980454565,0.19339737,118980.0,118970.0,0.1283569]
[1754980454972,0.19339737,118980.0,118970.0,0.94246336]
[1754980457182,0.19339654,118980.0,118970.0,0.94246336]
[1754980458097,0.19339654,118980.0,118970.0,1.11057296]
[1754980458281,0.19339654,118980.0,118970.0,0.94246336]
[1754980458891,0.19339654,118980.0,118970.0,0.1283569]
[1754980459096,0.19339654,118980.0,118970.0,0.94246336]
[1754980459375,0.19339654,118980.0,118970.0,1.11057296]
[1754980461031,0.19339655,118980.0,118970.0,1.11057296]
[1754980461232,0.19339655,118980.0,118970.0,1.23973296]
[1754980461433,0.19339655,118980.0,118970.0,1.07162336]
[1754980462664,0.19339655,118980.0,118970.0,0.2575169]
[1754980462861,0.19339655,118980.0,118970.0,1.07162336]
[1754980463613,0.19339655,118980.0,118970.0,1.23973296]
[1754980464384,0.19339655,118980.0,118970.0,1.07162336]
[1754980465385,0.19339655,118980.0,118970.0,1.23973296]
[1754980465586,0.19339655,118980.0,118970.0,0.2964665]
[1754980465856,0.19339655,118980.0,118970.0,1.11057296]
[1754980467052,0.19340157,118980.0,118970.0,1.11057296]
[1754980467220,0.19340157,118980.0,118970.0,0.94246336]
[1754980467430,0.19340157,118980.0,118970.0,1.11057296]
[1754980467643,0.19340157,118980.0,118970.0,0.1283569]
[1754980467846,0.19340157,118980.0,118970.0,0.94246336]
[1754980468722,0.19340157,118980.0,118970.0,0.73893786]
[1754980469368,0.19340157,118980.0,118970.0,0.90704746]
[1754980469642,0.19340157,118980.0,118970.0,0.2964665]
[1754980469861,0.18554449,118980.0,118970.0,1.51762842]
[1754980470064,0.19340683,118980.0,118970.0,1.51762842]
[1754980470232,0.02531136,118980.0,118970.0,1.51762842]
[1754980470435,0.32256683,118980.0,118970.0,1.64678842]
[1754980471144,0.32256683,118980.0,118970.0,1.47867882]
[1754980471551,0.32256683,118980.0,118970.0,0.73893786]
[1754980472257,0.32256683,118980.0,118970.0,0.90704746]
[1754980472832,0.32256683,118980.0,118970.0,0.73893786]
[1754980474973,0.32256683,118980.0,118970.0,0.1283569]
[1754980475174,0.32256683,118980.0,118970.0,0.73893786]
[1754980476149,0.32258346,118980.0,118970.0,0.73893786]
[1754980477932,0.32258346,118980.0,118970.0,0.1283569]
[1754980478142,0.32258346,118980.0,118970.0,0.73893786]
[1754980479360,0.32258444,118980.0,118970.0,0.73893786]
[1754980480457,0.31470449,118980.0,118970.0,0.73893786]
[1754980483181,0.01744902,118980.0,118970.0,1.60035167]
[1754980483399,0.14656902,118980.0,118970.0,1.60035167]
[1754980483685,0.31466449,118980.0,118970.0,1.60035167]
[1754980484379,0.18554449,118980.0,118970.0,1.72947167]
[1754980484623,0.14656902,118980.0,118970.0,1.72947167]
[1754980485859,0.31466449,118980.0,118970.0,1.72947167]
[1754980487328,0.31466449,118980.0,118970.0,0.50830975]
[1754980487474,0.31466449,118980.0,118970.0,1.72947167]
[1754980490177,0.31466449,118980.0,118970.0,0.95078111]
[1754980490379,0.31466449,118980.0,118970.0,0.82166111]
[1754980492928,0.31466449,118980.0,118970.0,0.98977071]
[1754980494718,0.31466449,118980.0,118970.0,0.37918975]
[1754980494962,0.31466449,118980.0,118970.0,0.98977071]
[1754980495501,0.31466449,118980.0,118970.0,0.82166111]
[1754980495702,0.31466449,118980.0,118970.0,0.98977071]
[1754980496261,0.31466449,118980.0,118970.0,1.72943167]
[1754980497048,0.20172269,119000.0,118980.0,0.16809547]
[1754980497228,0.14652902,118990.0,118980.0,0.97139968]
[1754980497633,0.14652902,118990.0,118980.0,0.97338968]
[1754980497969,0.01744902,118990.0,118980.0,0.49501872]
[1754980498177,0.14652902,118990.0,118980.0,0.49501872]
[1754980498372,0.14652902,118990.0,118980.0,1.71618064]
[1754980498867,0.14652902,118990.0,118980.0,1.30883414]
[1754980499869,0.01744902,118990.0,118980.0,1.30883414]
[1754980500289,0.64771506,119010.0,118990.0,0.16808135]
[1754980500504,0.31459624,119000.0,118990.0,0.3608046]
[1754980500657,0.14652902,119000.0,118990.0,0.3608046]
[1754980500860,0.14652902,119000.0,118990.0,0.3627946]
[1754980501063,0.14652902,119000.0,118990.0,0.3659246]
[1754980501684,0.14652902,119000.0,118990.0,1.17974002]
[1754980502489,0.14652902,119000.0,118990.0,1.30882002]
[1754980502655,0.14752902,119000.0,118990.0,1.30882002]
[1754980502856,0.14852902,119000.0,118990.0,1.30882002]
[1754980503552,0.14852902,119000.0,118990.0,1.31744707]
[1754980506009,0.14852902,119000.0,118990.0,1.18836707]
[1754980507542,0.01944902,119000.0,118990.0,1.18836707]
[1754980509567,0.01944902,119000.0,118990.0,1.31740707]
[1754980510040,0.01944902,119000.0,118990.0,0.50359165]
[1754980510208,0.01944902,119000.0,118990.0,1.07836707]
[1754980510412,0.01944902,119000.0,118990.0,1.21740707]
[1754980510852,0.002,119000.0,118990.0,2.03122249]
[1754980511894,0.001,119000.0,118990.0,1.21740707]
[1754980512298,0.14648902,119010.0,119000.0,0.16806722]
[1754980512452,0.14648902,119010.0,119000.0,1.17993589]
[1754980512972,0.31454212,119010.0,119000.0,1.17993589]
[1754980513749,0.14648902,119010.0,119000.0,1.17993589]
[1754980513969,0.14748902,119010.0,119000.0,1.17993589]
[1754980514431,0.14848902,119010.0,119000.0,1.17993589]
[1754980516644,0.14848902,119010.0,119000.0,0.36612047]
[1754980516847,0.14848902,119010.0,119000.0,1.17993589]
[1754980517998,0.14848902,119010.0,119000.0,1.99375131]
[1754980518973,0.14848902,119010.0,119000.0,1.17993589]
[1754980520152,0.002,119010.0,119000.0,2.12275131]
[1754980521116,0.001,119010.0,119000.0,2.12275131]
[1754980522449,0.002,119010.0,119000.0,2.12275131]
[1754980524170,0.002,119010.0,119000.0,1.99375131]
[1754980524322,0.002,119010.0,119000.0,1.17993589]
[1754980528565,0.002,119010.0,119000.0,1.30889589]
[1754980528750,0.002,119010.0,119000.0,1.71542839]
[1754980530070,0.002,119010.0,119000.0,2.32560235]
[1754980530623,0.001,119010.0,119000.0,1.30848102]
[1754980530834,0.33712936,119030.0,119020.0,0.16803898]
[1754980531060,0.33712936,119030.0,119020.0,0.27803898]
[1754980531267,0.33712936,119030.0,119020.0,1.09143953]
[1754980531686,0.34499435,119030.0,119020.0,1.09143953]
[1754980532086,0.34499435,119030.0,119020.0,0.92354745]
[1754980532904,0.34499477,119030.0,119020.0,0.92354745]
[1754980533390,0.34499534,119030.0,119020.0,0.92354745]
[1754980533575,0.34699534,119030.0,119020.0,0.92354745]
[1754980534063,0.34695534,119030.0,119020.0,0.92354745]
[1754980534637,0.34695534,119030.0,119020.0,0.1101469]
[1754980538008,1.16035943,119030.0,119020.0,0.1101469]
[1754980538210,1.16035943,119030.0,119020.0,0.0001469]
[1754980542136,1.16036254,119030.0,119020.0,0.0001469]
[1754980545062,1.18559454,119030.0,119020.0,0.0001469]
[1754980548126,1.18559271,119030.0,119020.0,0.0001469]
[1754980548943,0.37219216,119030.0,119020.0,0.0001469]
[1754980549335,1.18311271,119030.0,119020.0,0.0001469]
[1754980549540,0.36971216,119030.0,119020.0,0.0001469]
[1754980549749,1.18311271,119030.0,119020.0,0.0001469]
[1754980551202,1.17524191,119030.0,119020.0,0.0001469]
[1754980551404,1.18311177,119030.0,119020.0,0.0001469]
[1754980551741,0.36971116,119030.0,119020.0,0.0001469]
[1754980552075,1.18311171,119030.0,119020.0,0.0001469]
[1754980552611,0.98003206,119030.0,119020.0,0.0001469]
[1754980557168,0.98003206,119030.0,119020.0,0.0031469]
[1754980557368,0.98003176,119030.0,119020.0,0.0031469]
[1754980558889,0.36971086,119030.0,119020.0,0.0031469]
[1754980559086,0.98003176,119030.0,119020.0,0.0031469]
[1754980560412,0.98003255,119030.0,119020.0,0.0031469]
[1754980560792,0.97216226,119030.0,119020.0,0.0031469]
[1754980561003,0.98003255,119030.0,119020.0,0.0031469]
[1754980562019,0.98003255,119030.0,119020.0,0.0001469]
[1754980562773,1.6730767,119030.0,119020.0,0.0001469]
[1754980563905,1.0627558,119030.0,119020.0,0.0001469]
[1754980565927,1.0627558,119030.0,119020.0,0.0031469]
[1754980566129,0.4524349,119030.0,119020.0,0.0031469]
[1754980566306,1.0627558,119030.0,119020.0,0.0031469]
[1754980568441,1.06276095,119030.0,119020.0,0.0031469]
[1754980571310,1.05488551,119030.0,119020.0,0.0031469]
[1754980571511,1.06276015,119030.0,119020.0,0.0031469]
[1754980571668,0.45243925,119030.0,119020.0,0.0031469]
[1754980571871,1.06276015,119030.0,119020.0,0.0031469]
[1754980573096,1.06276015,119030.0,119020.0,0.0051569]
[1754980576224,0.45243925,119030.0,119020.0,0.0051569]
[1754980576515,1.06276015,119030.0,119020.0,0.0051569]
[1754980579186,0.369716,119030.0,119020.0,0.0051569]
[1754980579398,0.9800369,119030.0,119020.0,0.0051569]
[1754980580424,0.97216226,119030.0,119020.0,0.0051569]
[1754980580624,0.98003672,119030.0,119020.0,0.0051569]
[1754980581464,0.98003672,119030.0,119020.0,0.0031469]
[1754980581811,0.98003672,119030.0,119020.0,0.0001469]
[1754980583536,1.06275997,119030.0,119020.0,0.0001469]
[1754980584593,0.45243907,119030.0,119020.0,0.0001469]
[1754980584776,1.06275997,119030.0,119020.0,0.0032969]
[1754980585278,1.06275997,119030.0,119020.0,0.0001469]
[1754980585869,1.67308087,119030.0,119020.0,0.0001469]
[1754980588645,0.45243907,119030.0,119020.0,0.0001469]
[1754980588802,1.67308087,119030.0,119020.0,0.0001469]
[1754980589597,1.67308445,119030.0,119020.0,0.0001469]
[1754980591645,1.06276355,119030.0,119020.0,0.0001469]
[1754980592235,1.06276355,119030.0,119020.0,0.0032969]
[1754980596838,0.45244265,119030.0,119020.0,0.0032969]
[1754980597053,1.06276355,119030.0,119020.0,0.0032969]
[1754980598382,1.0627669,119030.0,119020.0,0.0032969]
[1754980599093,1.06276688,119030.0,119020.0,0.0032969]
[1754980601183,1.06276686,119030.0,119020.0,0.0032969]
[1754980604717,0.45244596,119030.0,119020.0,0.0032969]
[1754980604949,1.06276686,119030.0,119020.0,0.0052669]
[1754980608077,1.06276681,119030.0,119020.0,0.0052669]
[1754980610146,1.05488551,119030.0,119020.0,0.0052669]
[1754980610361,1.06276681,119030.0,119020.0,0.0052669]
[1754980610758,1.06276681,119030.0,119020.0,0.0001469]
[1754980610952,1.06276681,119030.0,119020.0,0.0032269]
[1754980611968,1.06276681,119030.0,119020.0,0.0051969]
[1754980612765,0.45244591,119030.0,119020.0,0.0051969]
[1754980612970,1.06276681,119030.0,119020.0,0.0051969]
[1754980615446,1.06024681,119030.0,119020.0,0.0051969]
[1754980617271,1.05236551,119030.0,119020.0,0.0051969]
[1754980617477,1.06024671,119030.0,119020.0,0.0051969]
[1754980617905,1.06024662,119030.0,119020.0,0.0051969]
[1754980621306,1.0597544,119030.0,119020.0,0.0051969]
[1754980622106,1.0597544,119030.0,119020.0,0.0032269]
[1754980625386,1.05187329,119030.0,119020.0,0.0032269]
[1754980625592,1.05975407,119030.0,119020.0,0.0032269]
[1754980627746,1.05975406,119030.0,119020.0,0.0032269]
[1754980628369,0.44943316,119030.0,119020.0,0.0032269]
[1754980628613,1.05975406,119030.0,119020.0,0.0032269]
[1754980630863,1.05975406,119030.0,119020.0,0.0001469]
[1754980631296,1.67007496,119030.0,119020.0,0.0001469]
[1754980631722,0.16806722,119000.0,118990.0,0.0676104]
[1754980631884,0.90698812,119000.0,118990.0,0.16974735]
[1754980632087,0.31411624,119000.0,118990.0,0.16974735]
[1754980632303,0.92443714,119000.0,118990.0,0.16974735]
[1754980632515,0.32239988,119000.0,118990.0,0.17276735]
[1754980632717,0.31411624,119000.0,118990.0,0.17276735]
[1754980633112,0.33935424,119000.0,118990.0,0.22276735]
[1754980633314,0.33935424,119000.0,118990.0,0.83308825]
[1754980633603,0.33935424,119000.0,118990.0,0.22276735]
[1754980633986,0.21075424,119000.0,118990.0,0.83308825]
[1754980634229,0.33935424,119000.0,118990.0,0.83308825]
[1754980634419,0.31411624,119000.0,118990.0,1.0011696]
[1754980634626,0.31411624,119000.0,118990.0,1.08389285]
[1754980634927,0.14604902,119000.0,118990.0,1.08389285]
[1754980635138,0.31411624,119000.0,118990.0,1.08389285]
[1754980636199,0.31411624,119000.0,118990.0,0.40596155]
[1754980636402,0.31411624,119000.0,118990.0,1.01628245]
[1754980637458,0.01744902,119000.0,118990.0,1.01628245]
[1754980637655,0.14600902,119000.0,118990.0,1.01628245]
[1754980638215,0.31407624,119000.0,118990.0,1.01628245]
[1754980644202,0.31407624,119000.0,118990.0,0.8482011]
[1754980644774,0.31407624,119000.0,118990.0,0.2378802]
[1754980644980,0.31407624,119000.0,118990.0,0.8482011]
[1754980645842,0.92439714,119000.0,118990.0,0.15515695]
[1754980646498,0.31407624,119000.0,118990.0,0.15515695]
[1754980647224,1.53471804,119000.0,118990.0,0.15014695]
[1754980647363,0.94963614,119000.0,118990.0,0.15014695]
[1754980649941,0.33931524,119000.0,118990.0,0.15014695]
[1754980650146,0.94963614,119000.0,118990.0,0.15014695]
[1754980652824,0.33931524,119000.0,118990.0,0.15014695]
[1754980653041,0.94963614,119000.0,118990.0,0.15014695]
[1754980654434,1.64268029,119000.0,118990.0,0.00014695]
[1754980654649,1.65054938,119000.0,118990.0,0.00014695]
[1754980657934,1.65154938,119000.0,118990.0,0.00014695]
[1754980658337,1.65354938,119000.0,118990.0,0.00014695]
[1754980659042,1.6535443,119000.0,118990.0,0.00014695]
[1754980662110,1.65354297,119000.0,118990.0,0.00014695]
[1754980663382,0.43290117,119000.0,118990.0,0.00014695]
[1754980663548,1.65354297,119000.0,118990.0,0.00014695]
[1754980664371,1.65354044,119000.0,118990.0,0.00014695]
[1754980665816,1.65354044,119000.0,118990.0,0.00533695]
[1754980665817,0.43289864,119000.0,118990.0,0.00533695]
[1754980666060,0.028239,119000.0,118990.0,0.41841852]
[1754980666291,0.13636,119000.0,118990.0,0.3610287]
[1754980666511,0.003,119000.0,118990.0,1.6316705]
[1754980666955,0.002,119000.0,118990.0,1.72265047]
[1754980668297,0.13336,119010.0,119000.0,0.16806722]
[1754980668512,0.15080902,119010.0,119000.0,1.51389902]
[1754980668722,0.15080902,119010.0,119000.0,1.10695744]
[1754980672379,0.15080902,119010.0,119000.0,0.29325722]
[1754980672599,0.15080902,119010.0,119000.0,1.10695744]
[1754980674262,0.15080902,119010.0,119000.0,0.29325722]
[1754980674471,0.15080902,119010.0,119000.0,1.10695744]
[1754980679427,0.01744902,119010.0,119000.0,1.10695744]
[1754980679628,0.15080902,119010.0,119000.0,1.10695744]
[1754980680408,0.15080902,119010.0,119000.0,1.12261028]
[1754980680672,0.15080902,119010.0,119000.0,1.20533353]
[1754980680873,0.15080902,119010.0,119000.0,1.20533305]
[1754980682774,0.30132004,119020.0,119010.0,0.1680531]
[1754980682983,0.30132004,119020.0,119010.0,1.12259568]
[1754980684377,0.13328,119020.0,119010.0,1.12259568]
[1754980684797,0.15072902,119020.0,119010.0,1.12259568]
[1754980685160,0.318768,119020.0,119010.0,1.12259568]
[1754980688297,0.318768,119020.0,119010.0,1.12258878]
[1754980691351,0.318768,119020.0,119010.0,1.12259573]
[1754980691732,0.318768,119020.0,119010.0,0.12519]
[1754980691975,1.13250822,119020.0,119010.0,0.13565258]
[1754980692431,0.18551624,119000.0,118990.0,0.23308695]
[1754980692650,0.31899624,119000.0,118990.0,0.17308695]
[1754980693062,1.13269646,119000.0,118990.0,0.17014695]
[1754980693252,0.31899624,119000.0,118990.0,0.17014695]
[1754980693906,0.31899624,119000.0,118990.0,0.17114695]
[1754980695476,0.31899624,119000.0,118990.0,0.17214695]
[1754980697019,0.31899624,119000.0,118990.0,0.17719695]
[1754980698230,0.34423324,119000.0,118990.0,0.17719695]
[1754980702133,0.34423324,119000.0,118990.0,0.17508695]
[1754980703245,0.34423324,119000.0,118990.0,0.17719695]
[1754980705880,0.34423324,119000.0,118990.0,0.17508695]
[1754980707161,0.34423324,119000.0,118990.0,0.17719695]
[1754980708144,0.33923324,119000.0,118990.0,0.17719695]
[1754980715761,0.31403624,119000.0,118990.0,1.15897852]
[1754980715977,0.18051624,119000.0,118990.0,1.15897852]
[1754980716215,0.31395624,119000.0,118990.0,1.15897852]
[1754980718296,0.31395624,119000.0,118990.0,0.17719695]
[1754980718669,0.31395624,119000.0,118990.0,0.99089717]
[1754980718909,0.31395624,119000.0,118990.0,0.17719695]
[1754980719050,0.31395624,119000.0,118990.0,0.99089717]
[1754980719721,0.31395624,119000.0,118990.0,1.15897852]
[1754980720168,0.18051624,119000.0,118990.0,1.29245852]
[1754980720386,0.15100902,119000.0,118990.0,1.29245852]
[1754980721434,0.31907624,119000.0,118990.0,1.29245852]
[1754980722251,0.31907624,119000.0,118990.0,1.15897852]
[1754980729560,0.73040017,119020.0,118990.0,1.15897852]
[1754980729770,0.31882212,119010.0,119000.0,0.98487744]
[1754980730032,0.31882212,119010.0,119000.0,1.08688744]
[1754980730625,0.15076902,119010.0,119000.0,1.08688744]
[1754980731723,0.15076902,119010.0,119000.0,1.09519898]
[1754980732267,0.31882212,119010.0,119000.0,0.28149876]
[1754980732469,0.31882212,119010.0,119000.0,1.09519898]
[1754980732667,0.15076902,119010.0,119000.0,1.09519898]
[1754980733036,0.15080902,119010.0,119000.0,1.09519898]
[1754980733237,0.15080902,119010.0,119000.0,1.08688744]
[1754980733959,0.31886212,119010.0,119000.0,1.08688744]
[1754980734379,0.15080902,119010.0,119000.0,1.08688744]
[1754980735156,0.31886212,119010.0,119000.0,1.08688744]